[Event "FIDE Open Sachove Univerzity QCC"]
[Site "Ceske Budejovice"]
[Date "2020.07.01"]
[Round "1.13"]
[White "Huemer, Gerald"]
[Black "Krautschneider, Daniel Jan"]
[Result "1/2-1/2"]
[ECO "A45"]
[WhiteElo "1721"]
[BlackElo "1374"]
[Annotator "NA"]
[PlyCount "75"]
[EventDate "2020.07.01"]
[EventType "swiss"]
[EventCountry "CZE"]
[SourceTitle "playchess.com"]
[Source "ChessBase"]
[SourceQuality "1"]
[TimeControl "40/5400+30:1800+30"]

1. d4 {[%emt 0:00:00]} Nf6 {[%emt 0:00:00]} 2. Bf4 {[%emt 0:00:05]} g6 {[%emt 0:00:00]} 3. e3 {[%emt 0:00:18]} Bg7 {[%emt 0:00:00]} 4. Nd2 {[%emt 0:00:26]} e6 {[%emt 0:00:24]} 5. h3 {[%emt 0:00:24]} O-O {[%emt 0:00:09]} 6. c3 {[%emt 0:00:16]} d5 {[%emt 0:00:17]} 7. Ngf3 {[%emt 0:00:17]} Nbd7 {[%emt 0:00:40]} 8. Be2 {[%emt 0:01:26]} b6 {[%emt 0:00:14]} 9. Ne5 {[%emt 0:01:20]} Bb7 {[%emt 0:01:24]} 10. Ndf3 {[%emt 0:02:42]} Rc8 {[%emt 0:05:24]} 11. Qa4 {[%emt 0:05:06]} a6 {[%emt 0:07:24]} 12. g4 {[%emt 0:08:21]} b5 {[%emt 0:01:42]} 13. Qc2 {[%emt 0:02:42]} c5 {[%emt 0:03:17]} 14. g5 {[%emt 0:03:50]} Nxe5 {[%emt 0:07:07]} 15. Nxe5 {[%emt 0:00:21]} Nd7 {[%emt 0:00:13]} 16. h4 {[%emt 0:02:52]} Nxe5 {[%emt 0:01:58]} 17. Bxe5 {[%emt 0:01:24]} Bxe5 {[%emt 0:01:16]} 18. dxe5 {[%emt 0:00:08]} d4 {[%emt 0:00:07]} 19. Rh3 {[%emt 0:04:18]} Qd5 {[%emt 0:04:01]} 20. Bf3 {[%emt 0:01:23]} Qd7 {[%emt 0:00:28]} 21. Bxb7 {[%emt 0:00:15]} Qxb7 {[%emt 0:00:11]} 22. O-O-O {[%emt 0:02:46]} Rc7 {[%emt 0:01:59]} 23. exd4 {[%emt 0:00:30]} cxd4 {[%emt 0:00:54]} 24. Rxd4 {[%emt 0:00:15]} Rfc8 {[%emt 0:00:26]} 25. Qd2 {[%emt 0:02:30]} b4 {[%emt 0:01:05]} 26. Rd8+ {[%emt 0:01:30]} Kg7 {[%emt 0:00:17]} 27. Rxc8 {[%emt 0:01:51]} Qxc8 {[%emt 0:00:19]} 28. Qf4 {[%emt 0:01:48]} bxc3 {[%emt 0:01:01]} 29. Qf6+ {[%emt 0:01:32]} Kg8 {[%emt 0:00:14]} 30. bxc3 {[%emt 0:04:35]} Rxc3+ {[%emt 0:00:25]} 31. Rxc3 {[%emt 0:00:01]} Qxc3+ {[%emt 0:00:13]} 32. Kb1 {[%emt 0:00:12]} Qc7 {[%emt 0:03:13]} 33. Kb2 {[%emt 0:00:50]} a5 {[%emt 0:00:14]} 34. Kb3 {[%emt 0:00:54]} Qd7 {[%emt 0:00:37]} 35. Kc3 {[%emt 0:01:50]} Qc6+ {[%emt 0:00:14]} 36. Kb3 {[%emt 0:01:08]} Qb5+ {[%emt 0:00:16]} 37. Kc2 {[%emt 0:00:45]} Qc4+ {[%emt 0:00:09]} 38. Kb2 {[%emt 0:00:18]} 1/2-1/2

[Event "FIDE Open Sachove Univerzity QCC"]
[Site "Ceske Budejovice"]
[Date "2020.07.01"]
[Round "1.14"]
[White "Garabik, Marek"]
[Black "Berka, Lubos"]
[Result "0-1"]
[ECO "B12"]
[WhiteElo "1363"]
[BlackElo "1718"]
[Annotator "NA"]
[PlyCount "80"]
[EventDate "2020.07.01"]
[EventType "swiss"]
[EventCountry "CZE"]
[SourceTitle "playchess.com"]
[Source "ChessBase"]
[SourceQuality "1"]
[TimeControl "40/5400+30:1800+30"]

1. e4 {[%emt 0:00:00]} c6 {[%emt 0:00:00]} 2. d4 {[%emt 0:00:00]} d5 {[%emt 0:00:00]} 3. e5 {[%emt 0:00:09]} Bf5 {[%emt 0:00:04]} 4. Nf3 {[%emt 0:00:38]} e6 {[%emt 0:00:20]} 5. c3 {[%emt 0:00:29]} Ne7 {[%emt 0:00:53]} 6. Bg5 {[%emt 0:00:31]} h6 {[%emt 0:00:23]} 7. Be3 {[%emt 0:00:13]} Nd7 {[%emt 0:01:08]} 8. h3 {[%emt 0:01:53]} Qc7 {[%emt 0:02:47]} 9. Bd3 {[%emt 0:02:02]} Bxd3 {[%emt 0:00:35]} 10. Qxd3 {[%emt 0:00:05]} c5 {[%emt 0:02:11]} 11. dxc5 {[%emt 0:01:57]} Nxc5 {[%emt 0:01:52]} 12. Qb5+ {[%emt 0:00:41]} Nd7 {[%emt 0:00:09]} 13. Nbd2 {[%emt 0:03:12]} a6 {[%emt 0:01:53]} 14. Qb3 {[%emt 0:00:26]} Ng6 {[%emt 0:04:33]} 15. O-O {[%emt 0:01:18]} Ngxe5 {[%emt 0:01:34]} 16. Nxe5 {[%emt 0:00:52]} Nxe5 {[%emt 0:00:28]} 17. Rad1 {[%emt 0:01:37]} Bd6 {[%emt 0:05:37]} 18. Bb6 {[%emt 0:01:32]} Qc6 {[%emt 0:02:34]} 19. Bd4 {[%emt 0:01:00]} O-O {[%emt 0:01:45]} 20. f4 {[%emt 0:01:10]} Nd7 {[%emt 0:04:24]} 21. Nf3 {[%emt 0:03:11]} b5 {[%emt 0:03:13]} 22. Ne5 {[%emt 0:01:08]} Nxe5 {[%emt 0:02:04]} 23. fxe5 {[%emt 0:00:21]} Bc5 {[%emt 0:00:30]} 24. Rc1 {[%emt 0:02:56]} Qb6 {[%emt 0:00:59]} 25. Qb4 {[%emt 0:03:28]} Rac8 {[%emt 0:03:34]} 26. Bxc5 {[%emt 0:00:15]} Rxc5 {[%emt 0:00:58]} 27. Qd4 {[%emt 0:00:03]} Qc7 {[%emt 0:00:28]} 28. Qe3 {[%emt 0:01:09]} Rc8 {[%emt 0:06:52]} 29. Rf4 {[%emt 0:03:52]} Rc4 {[%emt 0:02:09]} 30. Rcf1 {[%emt 0:01:08]} Rxf4 {[%emt 0:00:37]} 31. Qxf4 {[%emt 0:00:22]} Qa7+ {[%emt 0:03:13]} 32. Kh1 {[%emt 0:00:18]} Rc4 {[%emt 0:00:35]} 33. Qg3 {[%emt 0:00:47]} Re4 {[%emt 0:01:53]} 34. Re1 {[%emt 0:02:01]} Rxe1+ {[%emt 0:02:14]} 35. Qxe1 {[%emt 0:00:14]} Qc5 {[%emt 0:00:17]} 36. Qd2 {[%emt 0:02:13]} Qc4 {[%emt 0:00:52]} 37. b3 {[%emt 0:00:22]} Qe4 {[%emt 0:00:24]} 38. Qd4 {[%emt 0:00:50]} Qb1+ {[%emt 0:00:51]} 39. Kh2 {[%emt 0:02:25]} Qxa2 {[%emt 0:02:36]} 40. b4 {[%emt 0:00:25]} Qc4 {[%emt 0:00:57]} 0-1

[Event "FIDE Open Sachove Univerzity QCC"]
[Site "Ceske Budejovice"]
[Date "2020.07.01"]
[Round "1.15"]
[White "Molnar, Ladislav"]
[Black "Rolinkova, Adela"]
[Result "1-0"]
[ECO "B07"]
[WhiteElo "1712"]
[BlackElo "1360"]
[Annotator "NA"]
[PlyCount "72"]
[EventDate "2020.07.01"]
[EventType "swiss"]
[EventCountry "CZE"]
[SourceTitle "playchess.com"]
[Source "ChessBase"]
[SourceQuality "1"]
[TimeControl "40/5400+30:1800+30"]

1. e4 {[%emt 0:00:00]} d6 {[%emt 0:00:00]} 2. d4 {[%emt 0:00:00]} Nf6 {[%emt 0:00:00]} 3. Bd3 {[%emt 0:01:18]} g6 {[%emt 0:00:38]} 4. f4 {[%emt 0:00:37]} Bg7 {[%emt 0:00:41]} 5. Nf3 {[%emt 0:00:22]} O-O {[%emt 0:01:35]} 6. O-O {[%emt 0:00:22]} Bg4 {[%emt 0:00:32]} 7. h3 {[%emt 0:01:29]} Bxf3 {[%emt 0:00:38]} 8. Qxf3 {[%emt 0:00:10]} e5 {[%emt 0:06:05]} 9. c3 {[%emt 0:10:35]} Nbd7 {[%emt 0:02:51]} 10. f5 {[%emt 0:02:50]} c6 {[%emt 0:07:11]} 11. g4 {[%emt 0:05:40]} d5 {[%emt 0:02:10]} 12. exd5 {[%emt 0:02:24]} cxd5 {[%emt 0:01:24]} 13. Qf2 {[%emt 0:04:29]} e4 {[%emt 0:02:26]} 14. Bc2 {[%emt 0:00:57]} Qb6 {[%emt 0:01:55]} 15. Bb3 {[%emt 0:01:45]} Qc6 {[%emt 0:04:58]} 16. Be3 {[%emt 0:03:24]} a5 {[%emt 0:01:13]} 17. Qd2 {[%emt 0:00:27]} a4 {[%emt 0:01:50]} 18. Bd1 {[%emt 0:00:52]} b5 {[%emt 0:02:25]} 19. a3 {[%emt 0:00:54]} Nb6 {[%emt 0:01:33]} 20. Be2 {[%emt 0:06:50]} Ne8 {[%emt 0:04:41]} 21. Bg5 {[%emt 0:03:45]} f6 {[%emt 0:02:16]} 22. Bh4 {[%emt 0:02:47]} Nd6 {[%emt 0:04:07]} 23. fxg6 {[%emt 0:06:48]} hxg6 {[%emt 0:00:43]} 24. Qc1 {[%emt 0:00:58]} Kf7 {[%emt 0:04:08]} 25. Bg3 {[%emt 0:03:18]} Ndc4 {[%emt 0:04:40]} 26. Nd2 {[%emt 0:00:35]} Rae8 {[%emt 0:19:41]} 27. Nxc4 {[%emt 0:02:58]} Nxc4 {[%emt 0:00:51]} 28. Bxc4 {[%emt 0:03:50]} Qxc4 {[%emt 0:01:45]} 29. Qe3 {[%emt 0:00:36]} Rh8 {[%emt 0:04:31]} 30. Kg2 {[%emt 0:00:15]} Bh6 {[%emt 0:06:15]} 31. g5 {[%emt 0:02:09]} Bg7 {[%emt 0:04:35]} 32. gxf6 {[%emt 0:01:36]} Bxf6 {[%emt 0:03:12]} 33. Be5 {[%emt 0:00:30]} Re6 {[%emt 0:00:22]} 34. Qg5 {[%emt 0:01:49]} Qc6 {[%emt 0:01:19]} 35. Bxf6 {[%emt 0:00:53]} Rxf6 {[%emt 0:00:19]} 36. Rxf6+ {[%emt 0:00:35]} Qxf6 {[%emt 0:01:20]} 1-0

[Event "FIDE Open Sachove Univerzity QCC"]
[Site "Ceske Budejovice"]
[Date "2020.07.01"]
[Round "1.16"]
[White "Svadlenka, Dominik"]
[Black "Rychlik, Zdenek"]
[Result "0-1"]
[ECO "D10"]
[WhiteElo "1350"]
[BlackElo "1701"]
[Annotator "NA"]
[PlyCount "94"]
[EventDate "2020.07.01"]
[EventType "swiss"]
[EventCountry "CZE"]
[SourceTitle "playchess.com"]
[Source "ChessBase"]
[SourceQuality "1"]
[TimeControl "40/5400+30:1800+30"]

1. d4 {[%emt 0:00:00]} d5 {[%emt 0:00:00]} 2. c4 {[%emt 0:00:00]} c6 {[%emt 0:00:14]} 3. Nc3 {[%emt 0:00:00]} dxc4 {[%emt 0:01:32]} 4. e3 {[%emt 0:00:27]} Nf6 {[%emt 0:03:45]} 5. Bxc4 {[%emt 0:01:08]} e6 {[%emt 0:00:54]} 6. Nf3 {[%emt 0:00:48]} Bb4 {[%emt 0:00:24]} 7. O-O {[%emt 0:00:42]} O-O {[%emt 0:00:23]} 8. a3 {[%emt 0:01:42]} Bxc3 {[%emt 0:01:35]} 9. bxc3 {[%emt 0:00:21]} a5 {[%emt 0:01:47]} 10. a4 {[%emt 0:01:09]} Qc7 {[%emt 0:01:00]} 11. Ba3 {[%emt 0:04:08]} Re8 {[%emt 0:00:37]} 12. Be2 {[%emt 0:02:28]} Ne4 {[%emt 0:00:38]} 13. Qc2 {[%emt 0:00:42]} Nf6 {[%emt 0:06:53]} 14. c4 {[%emt 0:03:07]} Nbd7 {[%emt 0:01:41]} 15. e4 {[%emt 0:01:47]} e5 {[%emt 0:01:01]} 16. dxe5 {[%emt 0:08:45]} Nxe5 {[%emt 0:02:38]} 17. Nd2 {[%emt 0:00:20]} Bg4 {[%emt 0:03:35]} 18. Bxg4 {[%emt 0:01:12]} Nexg4 {[%emt 0:00:22]} 19. Nf3 {[%emt 0:04:04]} Nxe4 {[%emt 0:04:46]} 20. Rae1 {[%emt 0:01:57]} Ngf6 {[%emt 0:06:08]} 21. h3 {[%emt 0:06:15]} Rad8 {[%emt 0:03:18]} 22. Rd1 {[%emt 0:02:08]} h6 {[%emt 0:02:49]} 23. Rb1 {[%emt 0:03:35]} Rd7 {[%emt 0:02:28]} 24. Rfd1 {[%emt 0:03:08]} Red8 {[%emt 0:03:23]} 25. Rxd7 {[%emt 0:01:36]} Rxd7 {[%emt 0:00:55]} 26. Qb2 {[%emt 0:00:50]} Qf4 {[%emt 0:02:44]} 27. Qe5 {[%emt 0:04:25]} Qxe5 {[%emt 0:04:20]} 28. Nxe5 {[%emt 0:00:18]} Rd2 {[%emt 0:00:52]} 29. Rxb7 {[%emt 0:01:08]} Rd1+ {[%emt 0:02:23]} 30. Kh2 {[%emt 0:00:41]} Nxf2 {[%emt 0:00:10]} 31. Rxf7 {[%emt 0:04:30]} N6e4 {[%emt 0:04:32]} 32. g4 {[%emt 0:02:50]} Rh1+ {[%emt 0:01:09]} 33. Kg2 {[%emt 0:00:32]} Rxh3 {[%emt 0:00:04]} 34. Rf3 {[%emt 0:00:49]} Ng5 {[%emt 0:04:36]} 35. Kxf2 {[%emt 0:04:03]} Rh2+ {[%emt 0:01:46]} 36. Kg3 {[%emt 0:01:32]} Nxf3 {[%emt 0:00:31]} 37. Kxf3 {[%emt 0:01:51]} Rh3+ {[%emt 0:00:00]} 38. Ke4 {[%emt 0:02:34]} Rxa3 {[%emt 0:00:00]} 39. Nxc6 {[%emt 0:00:55]} Rxa4 {[%emt 0:00:00]} 40. Kf3 {[%emt 0:01:28]} Rxc4 {[%emt 0:00:41]} 41. Nxa5 {[%emt 0:30:12]} Rc1 {[%emt 0:30:11]} 42. Nb7 {[%emt 0:00:19]} Kf7 {[%emt 0:00:25]} 43. Nd6+ {[%emt 0:00:17]} Ke6 {[%emt 0:00:17]} 44. Ne8 {[%emt 0:01:37]} g6 {[%emt 0:01:16]} 45. g5 {[%emt 0:02:09]} hxg5 {[%emt 0:00:43]} 46. Kg4 {[%emt 0:00:37]} Rc8 {[%emt 0:00:25]} 47. Ng7+ {[%emt 0:00:40]} Kf7 {[%emt 0:00:02]} 0-1

[Event "FIDE Open Sachove Univerzity QCC"]
[Site "Ceske Budejovice"]
[Date "2020.07.01"]
[Round "1.17"]
[White "Valasek, Jakub"]
[Black "Klimes, Roman"]
[Result "1-0"]
[ECO "C44"]
[WhiteElo "1688"]
[BlackElo "1349"]
[Annotator "NA"]
[PlyCount "65"]
[EventDate "2020.07.01"]
[EventType "swiss"]
[EventCountry "CZE"]
[SourceTitle "playchess.com"]
[Source "ChessBase"]
[SourceQuality "1"]
[TimeControl "40/5400+30:1800+30"]

1. e4 {[%emt 0:00:00]} e5 {[%emt 0:00:00]} 2. Nf3 {[%emt 0:00:19]} Nc6 {[%emt 0:00:45]} 3. d4 {[%emt 0:00:44]} exd4 {[%emt 0:03:50]} 4. Bc4 {[%emt 0:01:13]} Bb4+ {[%emt 0:05:09]} 5. c3 {[%emt 0:01:22]} dxc3 {[%emt 0:01:24]} 6. bxc3 {[%emt 0:00:54]} Bc5 {[%emt 0:03:34]} 7. Bxf7+ {[%emt 0:03:43]} Kxf7 {[%emt 0:02:39]} 8. Qd5+ {[%emt 0:00:28]} Ke8 {[%emt 0:00:42]} 9. Qxc5 {[%emt 0:00:50]} d6 {[%emt 0:00:34]} 10. Qe3 {[%emt 0:02:56]} Be6 {[%emt 0:04:21]} 11. O-O {[%emt 0:02:40]} Qf6 {[%emt 0:02:30]} 12. Nd4 {[%emt 0:03:47]} Nge7 {[%emt 0:01:12]} 13. Nxe6 {[%emt 0:03:22]} Qxe6 {[%emt 0:00:47]} 14. Nd2 {[%emt 0:03:05]} Kd7 {[%emt 0:01:41]} 15. Bb2 {[%emt 0:05:06]} Rad8 {[%emt 0:06:12]} 16. f4 {[%emt 0:02:16]} g6 {[%emt 0:03:15]} 17. a3 {[%emt 0:03:27]} Kc8 {[%emt 0:00:51]} 18. c4 {[%emt 0:01:11]} Rhf8 {[%emt 0:03:04]} 19. Bc3 {[%emt 0:03:38]} b6 {[%emt 0:08:04]} 20. Qd3 {[%emt 0:02:26]} Rf7 {[%emt 0:14:09]} 21. Rf3 {[%emt 0:03:50]} Rdf8 {[%emt 0:08:25]} 22. Raf1 {[%emt 0:04:44]} Qg4 {[%emt 0:11:38]} 23. Qe3 {[%emt 0:01:51]} Nd8 {[%emt 0:03:57]} 24. h3 {[%emt 0:05:32]} Qh4 {[%emt 0:02:21]} 25. Kh2 {[%emt 0:01:53]} Ne6 {[%emt 0:02:29]} 26. g3 {[%emt 0:03:06]} Qh5 {[%emt 0:01:48]} 27. g4 {[%emt 0:03:15]} Qc5 {[%emt 0:01:57]} 28. f5 {[%emt 0:04:28]} Qxe3 {[%emt 0:01:35]} 29. Rxe3 {[%emt 0:00:32]} gxf5 {[%emt 0:01:22]} 30. exf5 {[%emt 0:00:54]} Nc5 {[%emt 0:02:49]} 31. Bd4 {[%emt 0:02:06]} Nd7 {[%emt 0:01:12]} 32. Ne4 {[%emt 0:01:12]} d5 {[%emt 0:00:45]} 33. Ng5 {[%emt 0:02:34]} 1-0

[Event "FIDE Open Sachove Univerzity QCC"]
[Site "Ceske Budejovice"]
[Date "2020.07.01"]
[Round "1.18"]
[White "Dobsa, Emma"]
[Black "Macho, Miloslav"]
[Result "0-1"]
[ECO "B06"]
[WhiteElo "1345"]
[BlackElo "1671"]
[Annotator "NA"]
[PlyCount "40"]
[EventDate "2020.07.01"]
[EventType "swiss"]
[EventCountry "CZE"]
[SourceTitle "playchess.com"]
[Source "ChessBase"]
[SourceQuality "1"]
[TimeControl "40/5400+30:1800+30"]

1. e4 {[%emt 0:00:00]} g6 {[%emt 0:06:09]} 2. d4 {[%emt 0:00:00]} d6 {[%emt 0:00:06]} 3. Nc3 {[%emt 0:01:26]} Bg7 {[%emt 0:00:10]} 4. f4 {[%emt 0:00:09]} a6 {[%emt 0:02:16]} 5. Nf3 {[%emt 0:00:19]} b5 {[%emt 0:01:07]} 6. Be3 {[%emt 0:04:28]} b4 {[%emt 0:00:58]} 7. Ne2 {[%emt 0:01:01]} Nf6 {[%emt 0:00:30]} 8. e5 {[%emt 0:00:34]} Nd5 {[%emt 0:01:46]} 9. Bf2 {[%emt 0:00:20]} O-O {[%emt 0:01:21]} 10. Ng3 {[%emt 0:00:24]} Nxf4 {[%emt 0:00:31]} 11. Qd2 {[%emt 0:00:41]} dxe5 {[%emt 0:03:40]} 12. Qxb4 {[%emt 0:02:10]} Nc6 {[%emt 0:02:37]} 13. Qd2 {[%emt 0:02:15]} Bg4 {[%emt 0:05:14]} 14. Be2 {[%emt 0:04:53]} Nxg2+ {[%emt 0:01:05]} 15. Kf1 {[%emt 0:01:01]} Nf4 {[%emt 0:00:41]} 16. h3 {[%emt 0:01:00]} Nxe2 {[%emt 0:00:24]} 17. hxg4 {[%emt 0:00:55]} Nxg3+ {[%emt 0:00:28]} 18. Bxg3 {[%emt 0:00:13]} Qd5 {[%emt 0:03:33]} 19. Kf2 {[%emt 0:03:36]} e4 {[%emt 0:02:41]} 20. Ng5 {[%emt 0:00:40]} e3+ {[%emt 0:01:46]} 0-1

[Event "FIDE Open Sachove Univerzity QCC"]
[Site "Ceske Budejovice"]
[Date "2020.07.01"]
[Round "1.19"]
[White "Kanka, Lukas"]
[Black "Vojtek, Pavel"]
[Result "0-1"]
[ECO "E76"]
[WhiteElo "1667"]
[BlackElo "1292"]
[Annotator "NA RC"]
[PlyCount "88"]
[EventDate "2020.07.01"]
[EventType "swiss"]
[EventCountry "CZE"]
[SourceTitle "playchess.com"]
[Source "ChessBase"]
[SourceQuality "1"]
[TimeControl "40/5400+30:1800+30"]

1. d4 {[%emt 0:00:00]} Nf6 {[%emt 0:00:00]} 2. c4 {[%emt 0:00:02]} d6 {[%emt 0:00:00]} 3. Nc3 {[%emt 0:00:07]} g6 {[%emt 0:00:07]} 4. e4 {[%emt 0:00:12]} Bg7 {[%emt 0:00:26]} 5. f4 {[%emt 0:01:18]} O-O {[%emt 0:02:20]} 6. Nf3 {[%emt 0:01:25]} e5 {[%emt 0:06:04]} 7. dxe5 {[%emt 0:07:44]} dxe5 {[%emt 0:00:23]} 8. Qxd8 {[%emt 0:01:10]} Rxd8 {[%emt 0:00:07]} 9. Nxe5 {[%emt 0:00:14]} Re8 {[%emt 0:00:38]} 10. Bd3 {[%emt 0:01:50]} Nxe4 {[%emt 0:03:33]} 11. Bxe4 {[%emt 0:03:59]} f6 {[%emt 0:01:16]} 12. Nxg6 {[%emt 0:03:49]} f5 {[%emt 0:03:44]} 13. Ne5 {[%emt 0:04:40]} fxe4 {[%emt 0:13:03]} 14. O-O {[%emt 0:01:08]} Bf5 {[%emt 0:03:17]} 15. g4 {[%emt 0:05:12]} Bxe5 {[%emt 0:05:00]} 16. fxe5 {[%emt 0:00:13]} Bg6 {[%emt 0:00:37]} 17. Nd5 {[%emt 0:00:14]} Rxe5 {[%emt 0:01:40]} 18. Bh6 {[%emt 0:01:12]} Nd7 {[%emt 0:03:06]} 19. Bf4 {[%emt 0:01:30]} c6 {[%emt 0:02:51]} 20. Bxe5 {[%emt 0:00:15]} cxd5 {[%emt 0:03:55]} 21. Bc3 {[%emt 0:03:38]} dxc4 {[%emt 0:02:00]} 22. Rad1 {[%emt 0:01:17]} Nc5 {[%emt 0:02:55]} 23. Rd5 {[%emt 0:05:08]} b6 {[%emt 0:09:32]} 24. h4 {[%emt 0:07:12]} Re8 {[%emt 0:04:45]} 25. h5 {[%emt 0:00:58]} Bf7 {[%emt 0:02:09]} 26. Rdf5 {[%emt 0:00:13]} Re7 {[%emt 0:03:53]} 27. g5 {[%emt 0:01:46]} Ne6 {[%emt 0:02:04]} 28. h6 {[%emt 0:09:02]} Bh5 {[%emt 0:05:27]} 29. Rf6 {[%emt 0:03:58]} Bf3 {[%emt 0:01:42]} 30. Bb4 {[%emt 0:05:29]} Re8 {[%emt 0:01:23]} 31. Bd2 {[%emt 0:06:05]} Nc5 {[%emt 0:08:13]} 32. g6 {[%emt 0:01:27]} hxg6 {[%emt 0:01:43]} 33. Rxg6+ {[%emt 0:00:10]} Kh7 {[%emt 0:00:37]} 34. Rg7+ {[%emt 0:00:45]} Kh8 {[%emt 0:00:11]} 35. Rxa7 {[%emt 0:00:11]} Rg8+ {[%emt 0:00:37]} 36. Kh2 {[%emt 0:00:33]} Rg2+ {[%emt 0:00:43]} 37. Kh3 {[%emt 0:00:38]} Rxd2 {[%emt 0:00:22]} 38. Rg1 {[%emt 0:00:17]} Rd7 {[%emt 0:01:36]} 39. Ra8+ {[%emt 0:03:08]} Kh7 {[%emt 0:00:31]} 40. Kh4 {[%emt 0:01:26]} e3 {[%emt 0:01:04]} 41. Re8 {[%emt 0:31:30]} e2 {[%emt 0:31:17]} 42. Rg3 {[%emt 0:02:57]} Rd4+ {[%emt 0:00:50]} 43. Kg5 {[%emt 0:02:32]} Re4 {[%emt 0:02:02]} 44. Rf8 {[%emt 0:01:56]} Ne6+ {[%emt 0:01:20]} 0-1

[Event "FIDE Open Sachove Univerzity QCC"]
[Site "Ceske Budejovice"]
[Date "2020.07.01"]
[Round "1.20"]
[White "Policar, Martin"]
[Black "Josko, Jiri"]
[Result "0-1"]
[ECO "B01"]
[WhiteElo "1258"]
[BlackElo "1649"]
[Annotator "NA"]
[PlyCount "78"]
[EventDate "2020.07.01"]
[EventType "swiss"]
[EventCountry "CZE"]
[SourceTitle "playchess.com"]
[Source "ChessBase"]
[SourceQuality "1"]
[TimeControl "40/5400+30:1800+30"]

1. e4 {[%emt 0:00:00]} d5 {[%emt 0:01:57]} 2. exd5 {[%emt 0:00:09]} Nf6 {[%emt 0:00:19]} 3. Nf3 {[%emt 0:02:03]} Nxd5 {[%emt 0:00:34]} 4. Bc4 {[%emt 0:00:48]} Bf5 {[%emt 0:00:52]} 5. O-O {[%emt 0:00:39]} e6 {[%emt 0:00:30]} 6. d4 {[%emt 0:06:44]} Nc6 {[%emt 0:00:30]} 7. Nc3 {[%emt 0:00:30]} Bb4 {[%emt 0:02:10]} 8. Nxd5 {[%emt 0:04:35]} exd5 {[%emt 0:02:29]} 9. Qe2+ {[%emt 0:05:41]} Qe7 {[%emt 0:03:32]} 10. Qxe7+ {[%emt 0:01:25]} Nxe7 {[%emt 0:00:22]} 11. Bb3 {[%emt 0:01:43]} O-O {[%emt 0:07:10]} 12. c3 {[%emt 0:03:52]} Bd6 {[%emt 0:00:29]} 13. Bg5 {[%emt 0:00:44]} f6 {[%emt 0:00:39]} 14. Bh4 {[%emt 0:01:29]} c6 {[%emt 0:00:32]} 15. Rfe1 {[%emt 0:07:56]} Rae8 {[%emt 0:02:03]} 16. Rac1 {[%emt 0:01:57]} b5 {[%emt 0:03:36]} 17. Bc2 {[%emt 0:01:30]} Bf4 {[%emt 0:02:03]} 18. Bxf5 {[%emt 0:10:48]} Nxf5 {[%emt 0:00:30]} 19. Rcd1 {[%emt 0:00:30]} a5 {[%emt 0:03:20]} 20. b4 {[%emt 0:04:32]} a4 {[%emt 0:01:24]} 21. a3 {[%emt 0:01:50]} Nd6 {[%emt 0:08:24]} 22. Bg3 {[%emt 0:03:24]} Bxg3 {[%emt 0:03:07]} 23. fxg3 {[%emt 0:03:15]} Nc4 {[%emt 0:04:00]} 24. Ra1 {[%emt 0:03:45]} Rxe1+ {[%emt 0:01:05]} 25. Nxe1 {[%emt 0:00:12]} Re8 {[%emt 0:00:16]} 26. Nd3 {[%emt 0:00:43]} Re3 {[%emt 0:00:27]} 27. Nc5 {[%emt 0:01:16]} Rxc3 {[%emt 0:00:39]} 28. Nb7 {[%emt 0:00:56]} Rxa3 {[%emt 0:04:16]} 29. Re1 {[%emt 0:00:33]} Re3 {[%emt 0:00:31]} 30. Ra1 {[%emt 0:00:37]} a3 {[%emt 0:06:36]} 31. Na5 {[%emt 0:01:04]} Nxa5 {[%emt 0:01:12]} 32. bxa5 {[%emt 0:00:38]} b4 {[%emt 0:00:12]} 33. a6 {[%emt 0:00:12]} Re7 {[%emt 0:00:22]} 34. Kf2 {[%emt 0:00:52]} Ra7 {[%emt 0:00:19]} 35. Ke2 {[%emt 0:00:20]} Rxa6 {[%emt 0:00:26]} 36. Kd2 {[%emt 0:00:35]} b3 {[%emt 0:00:23]} 37. Kc3 {[%emt 0:01:05]} b2 {[%emt 0:00:39]} 38. Re1 {[%emt 0:00:20]} Rb6 {[%emt 0:00:53]} 39. Kc2 {[%emt 0:00:45]} a2 {[%emt 0:00:27]} 0-1

[Event "FIDE Open Sachove Univerzity QCC"]
[Site "Ceske Budejovice"]
[Date "2020.07.01"]
[Round "1.21"]
[White "Smola, David"]
[Black "Dobsinsky, Petr"]
[Result "0-1"]
[ECO "B72"]
[WhiteElo "1649"]
[BlackElo "1248"]
[Annotator "NA"]
[PlyCount "54"]
[EventDate "2020.07.01"]
[EventType "swiss"]
[EventCountry "CZE"]
[SourceTitle "playchess.com"]
[Source "ChessBase"]
[SourceQuality "1"]
[TimeControl "40/5400+30:1800+30"]

1. e4 {[%emt 0:00:00]} c5 {[%emt 0:00:00]} 2. Nf3 {[%emt 0:00:00]} g6 {[%emt 0:00:01]} 3. d4 {[%emt 0:00:38]} cxd4 {[%emt 0:00:21]} 4. Nxd4 {[%emt 0:00:44]} Bg7 {[%emt 0:00:20]} 5. Be3 {[%emt 0:01:26]} Nc6 {[%emt 0:00:40]} 6. Bc4 {[%emt 0:05:10]} d6 {[%emt 0:01:23]} 7. Nc3 {[%emt 0:01:59]} Nf6 {[%emt 0:02:48]} 8. f3 {[%emt 0:01:58]} O-O {[%emt 0:00:33]} 9. O-O {[%emt 0:00:50]} e5 {[%emt 0:00:46]} 10. Ndb5 {[%emt 0:01:34]} Ne8 {[%emt 0:04:09]} 11. Bd5 {[%emt 0:02:32]} a6 {[%emt 0:01:31]} 12. Na3 {[%emt 0:05:31]} Nf6 {[%emt 0:04:35]} 13. Bg5 {[%emt 0:02:16]} Qb6+ {[%emt 0:00:52]} 14. Kh1 {[%emt 0:06:50]} Qxb2 {[%emt 0:06:31]} 15. Bxf6 {[%emt 0:00:36]} Bxf6 {[%emt 0:05:12]} 16. Nab1 {[%emt 0:00:30]} Nd4 {[%emt 0:00:30]} 17. Rf2 {[%emt 0:01:59]} Qxa1 {[%emt 0:00:51]} 18. Qc1 {[%emt 0:01:05]} Nb5 {[%emt 0:01:27]} 19. Nxb5 {[%emt 0:04:58]} axb5 {[%emt 0:00:15]} 20. c3 {[%emt 0:00:47]} Be6 {[%emt 0:01:24]} 21. Bxb7 {[%emt 0:04:37]} Rxa2 {[%emt 0:00:38]} 22. Rf1 {[%emt 0:01:15]} Ra7 {[%emt 0:01:07]} 23. Bc6 {[%emt 0:01:44]} Ba2 {[%emt 0:03:04]} 24. Bxb5 {[%emt 0:03:33]} Qxb1 {[%emt 0:00:23]} 25. Qxb1 {[%emt 0:00:57]} Bxb1 {[%emt 0:00:17]} 26. Rxb1 {[%emt 0:00:04]} Rb8 {[%emt 0:00:15]} 27. c4 {[%emt 0:00:45]} Rba8 {[%emt 0:00:51]} 0-1